[Event "Titled Tuesday Blitz March 15 Late 2022"]
[White "Hess, Robert"]
[Black "Fishbein, Alexander"]
[WhiteFideId "2022036"]
[BlackFideId "2000377"]
[WhiteElo "2557"]
[BlackElo "2442"]
[Result "0-1"]
[Round "10"]
[TimeControl "180+1"]
[Date "2022.03.15"]
[WhiteClock "0:00:01"]
[BlackClock "0:00:37"]

1. b3 {[%clk 0:02:56]}  c5 {[%clk 0:02:56]} 2. Bb2 {[%clk 0:02:57]}  Nc6 {[%clk 0:02:56]} 3. e3 {[%clk 0:02:57]}  Nf6 {[%clk 0:02:53]} 4. h3 {[%clk 0:02:57]}  e6 {[%clk 0:02:48]} 5. d3 {[%clk 0:02:57]}  d5 {[%clk 0:02:45]} 6. Nd2 {[%clk 0:02:58]}  Be7 {[%clk 0:02:45]} 7. g4 {[%clk 0:02:57]}  h6 {[%clk 0:02:42]} 8. Ne2 {[%clk 0:02:56]}  b6 {[%clk 0:02:42]} 9. Ng3 {[%clk 0:02:53]}  Bb7 {[%clk 0:02:42]} 10. Qe2 {[%clk 0:02:52]}  Bd6 {[%clk 0:02:41]} 11. f4 {[%clk 0:02:51]}  d4 {[%clk 0:02:39]} 12. Nc4 {[%clk 0:02:36]}  dxe3 {[%clk 0:02:35]} 13. Nxd6+ {[%clk 0:02:26]}  Qxd6 {[%clk 0:02:35]} 14. Qxe3 {[%clk 0:02:26]}  Nd4 {[%clk 0:02:31]} 15. O-O-O {[%clk 0:02:14]}  Bxh1 {[%clk 0:02:29]} 16. Nxh1 {[%clk 0:02:14]}  Nd5 {[%clk 0:02:28]} 17. Qg1 {[%clk 0:02:09]}  Qxf4+ {[%clk 0:02:27]} 18. Kb1 {[%clk 0:02:09]}  O-O {[%clk 0:02:16]} 19. Bg2 {[%clk 0:01:59]}  Ne2 {[%clk 0:02:08]} 20. Qe1 {[%clk 0:01:55]}  Qe3 {[%clk 0:01:59]} 21. Nf2 {[%clk 0:01:12]}  Rad8 {[%clk 0:01:50]} 22. Ne4 {[%clk 0:01:05]}  Nef4 {[%clk 0:01:42]} 23. Qf1 {[%clk 0:01:02]}  Qe2 {[%clk 0:01:38]} 24. Bf3 {[%clk 0:00:47]}  Qxf1 {[%clk 0:01:35]} 25. Rxf1 {[%clk 0:00:48]}  Nxh3 {[%clk 0:01:31]} 26. Ng3 {[%clk 0:00:43]}  Ng5 {[%clk 0:01:29]} 27. Bh1 {[%clk 0:00:41]}  Ne3 {[%clk 0:01:28]} 28. Rg1 {[%clk 0:00:36]}  f6 {[%clk 0:01:24]} 29. Nh5 {[%clk 0:00:35]}  e5 {[%clk 0:01:21]} 30. c4 {[%clk 0:00:26]}  Rxd3 {[%clk 0:01:18]} 31. Bc1 {[%clk 0:00:22]}  Rd1 {[%clk 0:01:15]} 32. Rxd1 {[%clk 0:00:19]}  Nxd1 {[%clk 0:01:15]} 33. Bd5+ {[%clk 0:00:08]}  Kh8 {[%clk 0:01:14]} 34. Kc2 {[%clk 0:00:08]}  Nf2 {[%clk 0:01:12]} 35. Ng3 {[%clk 0:00:05]}  Nxg4 {[%clk 0:01:12]} 36. Nf5 {[%clk 0:00:05]}  e4 {[%clk 0:01:08]} 37. Ne7 {[%clk 0:00:04]}  Ne5 {[%clk 0:01:07]} 38. Bf4 {[%clk 0:00:02]}  Re8 {[%clk 0:01:04]} 39. Nf5 {[%clk 0:00:02]}  Kh7 {[%clk 0:01:01]} 40. Nd6 {[%clk 0:00:02]}  Rd8 {[%clk 0:00:59]} 41. Nb5 {[%clk 0:00:02]}  a6 {[%clk 0:00:56]} 42. Nc7 {[%clk 0:00:03]}  h5 {[%clk 0:00:42]} 43. Nxa6 {[%clk 0:00:02]}  h4 {[%clk 0:00:42]} 44. Nc7 {[%clk 0:00:03]}  h3 {[%clk 0:00:41]} 45. Bxg5 {[%clk 0:00:03]}  fxg5 {[%clk 0:00:39]} 46. Bxe4+ {[%clk 0:00:03]}  Kh6 {[%clk 0:00:39]} 47. Nd5 {[%clk 0:00:03]}  g4 {[%clk 0:00:38]} 48. Ne3 {[%clk 0:00:02]}  Kg5 {[%clk 0:00:37]} 49. Bd5 {[%clk 0:00:01]}  g3 {[%clk 0:00:37]} 0-1


[Site "https://www.chess.com"]

[Event "Titled Tuesday Blitz March 15 Late 2022"]
[White "Holt, Conrad"]
[Black "Golubka, Petro"]
[WhiteFideId "2034387"]
[BlackFideId "14114224"]
[WhiteElo "2586"]
[BlackElo "2346"]
[Result "1-0"]
[Round "10"]
[TimeControl "180+1"]
[Date "2022.03.15"]
[WhiteClock "0:00:19"]
[BlackClock "0:00:09"]

1. d4 {[%clk 0:02:45]}  Nf6 {[%clk 0:02:54]} 2. c4 {[%clk 0:02:45]}  g6 {[%clk 0:02:54]} 3. Nc3 {[%clk 0:02:45]}  c5 {[%clk 0:02:52]} 4. d5 {[%clk 0:02:45]}  Bg7 {[%clk 0:02:51]} 5. e4 {[%clk 0:02:46]}  d6 {[%clk 0:02:52]} 6. h3 {[%clk 0:02:45]}  O-O {[%clk 0:02:51]} 7. Nf3 {[%clk 0:02:45]}  b5 {[%clk 0:02:49]} 8. cxb5 {[%clk 0:02:45]}  a6 {[%clk 0:02:44]} 9. a4 {[%clk 0:02:45]}  axb5 {[%clk 0:02:19]} 10. Bxb5 {[%clk 0:02:46]}  Ba6 {[%clk 0:02:16]} 11. Bxa6 {[%clk 0:02:42]}  Nxa6 {[%clk 0:02:15]} 12. O-O {[%clk 0:02:42]}  Nb4 {[%clk 0:02:14]} 13. Qe2 {[%clk 0:02:40]}  Qb6 {[%clk 0:02:02]} 14. Bg5 {[%clk 0:02:30]}  Rfc8 {[%clk 0:01:56]} 15. Rfd1 {[%clk 0:02:21]}  h6 {[%clk 0:01:49]} 16. Bf4 {[%clk 0:02:09]}  c4 {[%clk 0:01:42]} 17. e5 {[%clk 0:02:04]}  dxe5 {[%clk 0:01:42]} 18. Nxe5 {[%clk 0:02:04]}  Nd3 {[%clk 0:01:41]} 19. Nxd3 {[%clk 0:02:02]}  cxd3 {[%clk 0:01:42]} 20. Rxd3 {[%clk 0:02:02]}  Rc4 {[%clk 0:01:42]} 21. Be5 {[%clk 0:02:00]}  Rb4 {[%clk 0:01:42]} 22. Rd2 {[%clk 0:01:51]}  Qb7 {[%clk 0:01:24]} 23. d6 {[%clk 0:01:41]}  e6 {[%clk 0:01:07]} 24. Rad1 {[%clk 0:01:35]}  Nd7 {[%clk 0:00:34]} 25. Bxg7 {[%clk 0:01:31]}  Kxg7 {[%clk 0:00:34]} 26. Ra1 {[%clk 0:01:20]}  Ra5 {[%clk 0:00:33]} 27. Ra3 {[%clk 0:01:11]}  h5 {[%clk 0:00:30]} 28. Ra2 {[%clk 0:00:56]}  h4 {[%clk 0:00:28]} 29. Qe3 {[%clk 0:00:56]}  Qa7 {[%clk 0:00:20]} 30. Qxa7 {[%clk 0:00:54]}  Rxa7 {[%clk 0:00:21]} 31. a5 {[%clk 0:00:54]}  Ra6 {[%clk 0:00:20]} 32. Ra3 {[%clk 0:00:44]}  f5 {[%clk 0:00:20]} 33. Na2 {[%clk 0:00:44]}  Rb5 {[%clk 0:00:19]} 34. b4 {[%clk 0:00:44]}  e5 {[%clk 0:00:19]} 35. Rc3 {[%clk 0:00:44]}  Kf6 {[%clk 0:00:17]} 36. Rc4 {[%clk 0:00:41]}  e4 {[%clk 0:00:16]} 37. Nc3 {[%clk 0:00:41]}  Rb8 {[%clk 0:00:16]} 38. Nd5+ {[%clk 0:00:37]}  Ke5 {[%clk 0:00:15]} 39. Nc7 {[%clk 0:00:37]}  Rxd6 {[%clk 0:00:14]} 40. Rxd6 {[%clk 0:00:36]}  Kxd6 {[%clk 0:00:15]} 41. b5 {[%clk 0:00:36]}  Ne5 {[%clk 0:00:14]} 42. Rc2 {[%clk 0:00:31]}  Nd3 {[%clk 0:00:14]} 43. a6 {[%clk 0:00:28]}  Rc8 {[%clk 0:00:15]} 44. b6 {[%clk 0:00:25]}  Nb4 {[%clk 0:00:15]} 45. Nb5+ {[%clk 0:00:25]}  Kd7 {[%clk 0:00:14]} 46. Rd2+ {[%clk 0:00:20]}  Ke7 {[%clk 0:00:14]} 47. b7 {[%clk 0:00:19]}  Rc1+ {[%clk 0:00:13]} 48. Kh2 {[%clk 0:00:18]}  Nxa6 {[%clk 0:00:14]} 49. Ra2 {[%clk 0:00:18]}  Nb8 {[%clk 0:00:14]} 50. Ra8 {[%clk 0:00:17]}  Nd7 {[%clk 0:00:13]} 51. b8=Q {[%clk 0:00:15]}  Nxb8 {[%clk 0:00:13]} 52. Rxb8 {[%clk 0:00:16]}  Rb1 {[%clk 0:00:13]} 53. Nd4 {[%clk 0:00:16]}  Rxb8 {[%clk 0:00:11]} 54. Nc6+ {[%clk 0:00:17]}  Kd6 {[%clk 0:00:12]} 55. Nxb8 {[%clk 0:00:17]}  g5 {[%clk 0:00:12]} 56. Kg1 {[%clk 0:00:17]}  Ke5 {[%clk 0:00:12]} 57. Nc6+ {[%clk 0:00:17]}  Kd6 {[%clk 0:00:11]} 58. Nd4 {[%clk 0:00:17]}  Ke5 {[%clk 0:00:12]} 59. Ne2 {[%clk 0:00:17]}  f4 {[%clk 0:00:11]} 60. f3 {[%clk 0:00:17]}  e3 {[%clk 0:00:11]} 61. Kf1 {[%clk 0:00:18]}  Kd5 {[%clk 0:00:12]} 62. Ke1 {[%clk 0:00:18]}  Kc4 {[%clk 0:00:12]} 63. Kd1 {[%clk 0:00:18]}  Kb3 {[%clk 0:00:13]} 64. Kc1 {[%clk 0:00:17]}  Kc4 {[%clk 0:00:13]} 65. Kc2 {[%clk 0:00:18]}  Kc5 {[%clk 0:00:13]} 66. Kc3 {[%clk 0:00:18]}  Kd5 {[%clk 0:00:14]} 67. Kd3 {[%clk 0:00:18]}  Ke5 {[%clk 0:00:15]} 68. Kc4 {[%clk 0:00:19]}  Ke6 {[%clk 0:00:14]} 69. Kd4 {[%clk 0:00:19]}  Kf6 {[%clk 0:00:11]} 70. Kd5 {[%clk 0:00:19]}  Kf5 {[%clk 0:00:11]} 71. Kd6 {[%clk 0:00:19]}  Kf6 {[%clk 0:00:11]} 72. Kd5 {[%clk 0:00:19]}  Kf5 {[%clk 0:00:12]} 73. Nc3 {[%clk 0:00:19]}  Kf6 {[%clk 0:00:12]} 74. Kd6 {[%clk 0:00:19]}  Kf5 {[%clk 0:00:10]} 75. Ne2 {[%clk 0:00:19]}  Kf6 {[%clk 0:00:11]} 76. Nd4 {[%clk 0:00:19]}  Kg6 {[%clk 0:00:09]} 77. Ke5 {[%clk 0:00:20]}  Kg7 {[%clk 0:00:08]} 78. Kf5 {[%clk 0:00:20]}  Kh6 {[%clk 0:00:09]} 79. Kf6 {[%clk 0:00:19]}  Kh5 {[%clk 0:00:09]} 80. Kg7 {[%clk 0:00:19]}  g4 {[%clk 0:00:08]} 81. fxg4+ {[%clk 0:00:19]}  Kg5 {[%clk 0:00:09]} 82. Nf3# {[%clk 0:00:19]} 1-0


[Site "https://www.chess.com"]

[Event "Titled Tuesday Blitz March 15 Late 2022"]
[White "Ibarra Jerez, Jose Carlos"]
[Black "Yoo, Christopher Woojin"]
[WhiteFideId "2226332"]
[BlackFideId "30909694"]
[WhiteElo "2626"]
[BlackElo "2105"]
[Result "1-0"]
[Round "10"]
[TimeControl "180+1"]
[Date "2022.03.15"]
[WhiteClock "0:01:28"]
[BlackClock "0:01:06"]

1. c4 {[%clk 0:03:00]}  Nf6 {[%clk 0:02:59]} 2. Nc3 {[%clk 0:02:58]}  e6 {[%clk 0:02:59]} 3. e4 {[%clk 0:02:58]}  c5 {[%clk 0:02:59]} 4. Nf3 {[%clk 0:02:50]}  Nc6 {[%clk 0:02:59]} 5. d4 {[%clk 0:02:47]}  cxd4 {[%clk 0:02:54]} 6. Nxd4 {[%clk 0:02:48]}  Qc7 {[%clk 0:02:33]} 7. a3 {[%clk 0:02:37]}  Nxd4 {[%clk 0:02:30]} 8. Qxd4 {[%clk 0:02:37]}  Bc5 {[%clk 0:02:30]} 9. Qd3 {[%clk 0:02:27]}  O-O {[%clk 0:02:27]} 10. b4 {[%clk 0:02:25]}  Be7 {[%clk 0:02:24]} 11. Be3 {[%clk 0:02:13]}  b6 {[%clk 0:02:09]} 12. f4 {[%clk 0:02:11]}  Bb7 {[%clk 0:02:05]} 13. Be2 {[%clk 0:02:09]}  Rfd8 {[%clk 0:01:55]} 14. Rc1 {[%clk 0:02:06]}  Rac8 {[%clk 0:01:40]} 15. O-O {[%clk 0:02:04]}  Qb8 {[%clk 0:01:40]} 16. Bd4 {[%clk 0:01:54]}  Qa8 {[%clk 0:01:34]} 17. Bf3 {[%clk 0:01:51]}  d6 {[%clk 0:01:29]} 18. h3 {[%clk 0:01:36]}  Bc6 {[%clk 0:01:16]} 19. Qe2 {[%clk 0:01:32]}  Qb7 {[%clk 0:01:06]} 20. b5 {[%clk 0:01:28]} 1-0


[Site "https://www.chess.com"]

[Event "Titled Tuesday Blitz March 15 Late 2022"]
[White "Iskusnyh, Sergei"]
[Black "Kucuksari, Kaan"]
[WhiteFideId "4120027"]
[BlackFideId "6380166"]
[WhiteElo "2492"]
[BlackElo "2305"]
[Result "0-1"]
[Round "10"]
[TimeControl "180+1"]
[Date "2022.03.15"]
[WhiteClock "0:00:17"]
[BlackClock "0:00:34"]

1. d4 {[%clk 0:03:00]}  d5 {[%clk 0:02:57]} 2. c4 {[%clk 0:03:00]}  c6 {[%clk 0:02:58]} 3. Nf3 {[%clk 0:03:00]}  Nf6 {[%clk 0:02:59]} 4. Qb3 {[%clk 0:02:58]}  dxc4 {[%clk 0:02:45]} 5. Qxc4 {[%clk 0:02:57]}  Bf5 {[%clk 0:02:45]} 6. g3 {[%clk 0:02:54]}  e6 {[%clk 0:02:42]} 7. Bg2 {[%clk 0:02:54]}  Nbd7 {[%clk 0:02:42]} 8. O-O {[%clk 0:02:53]}  Be7 {[%clk 0:02:43]} 9. e3 {[%clk 0:02:45]}  O-O {[%clk 0:02:41]} 10. Rd1 {[%clk 0:02:45]}  h6 {[%clk 0:02:40]} 11. Qe2 {[%clk 0:02:42]}  Ne4 {[%clk 0:02:35]} 12. Ne1 {[%clk 0:02:39]}  Ndf6 {[%clk 0:02:34]} 13. f3 {[%clk 0:02:26]}  Ng5 {[%clk 0:02:30]} 14. e4 {[%clk 0:02:21]}  Bg6 {[%clk 0:02:30]} 15. Be3 {[%clk 0:02:12]}  Nd7 {[%clk 0:02:25]} 16. Nd3 {[%clk 0:02:02]}  f5 {[%clk 0:02:25]} 17. Nf4 {[%clk 0:01:58]}  Bf7 {[%clk 0:02:25]} 18. e5 {[%clk 0:01:51]}  Nb6 {[%clk 0:02:19]} 19. Nc3 {[%clk 0:01:49]}  Nd5 {[%clk 0:02:11]} 20. Ncxd5 {[%clk 0:01:44]}  exd5 {[%clk 0:02:11]} 21. Qd3 {[%clk 0:01:34]}  Qc8 {[%clk 0:01:44]} 22. Rac1 {[%clk 0:01:32]}  a5 {[%clk 0:01:15]} 23. h4 {[%clk 0:01:30]}  Nh7 {[%clk 0:01:15]} 24. Bh3 {[%clk 0:01:23]}  Be6 {[%clk 0:01:14]} 25. Kh2 {[%clk 0:00:51]}  g5 {[%clk 0:01:11]} 26. Nxe6 {[%clk 0:00:46]}  Qxe6 {[%clk 0:01:10]} 27. hxg5 {[%clk 0:00:46]}  hxg5 {[%clk 0:01:05]} 28. g4 {[%clk 0:00:41]}  f4 {[%clk 0:00:59]} 29. Bf2 {[%clk 0:00:41]}  Kg7 {[%clk 0:00:55]} 30. Rh1 {[%clk 0:00:39]}  Rh8 {[%clk 0:00:54]} 31. Kg1 {[%clk 0:00:38]}  Nf8 {[%clk 0:00:54]} 32. Bf1 {[%clk 0:00:37]}  Rxh1+ {[%clk 0:00:53]} 33. Kxh1 {[%clk 0:00:37]}  Qh6+ {[%clk 0:00:54]} 34. Kg1 {[%clk 0:00:36]}  Ne6 {[%clk 0:00:55]} 35. Be2 {[%clk 0:00:33]}  Rh8 {[%clk 0:00:55]} 36. Kf1 {[%clk 0:00:33]}  Bb4 {[%clk 0:00:39]} 37. Bd1 {[%clk 0:00:28]}  Qh1+ {[%clk 0:00:36]} 38. Ke2 {[%clk 0:00:27]}  Rh2 {[%clk 0:00:36]} 39. Qf5 {[%clk 0:00:22]}  Nxd4+ {[%clk 0:00:35]} 40. Kd3 {[%clk 0:00:17]}  Nxf5 {[%clk 0:00:36]} 41. gxf5 {[%clk 0:00:17]}  Rxf2 {[%clk 0:00:34]} 0-1


[Site "https://www.chess.com"]

[Event "Titled Tuesday Blitz March 15 Late 2022"]
[White "Jaferian, Koosha"]
[Black "Romanchuk, Viktor"]
[WhiteFideId "12507440"]
[BlackFideId "14109271"]
[WhiteElo "2030"]
[BlackElo "2242"]
[Result "0-1"]
[Round "10"]
[TimeControl "180+1"]
[Date "2022.03.15"]
[WhiteClock "0:01:30"]
[BlackClock "0:01:40"]

1. Nf3 {[%clk 0:03:00]}  d5 {[%clk 0:02:59]} 2. b3 {[%clk 0:03:01]}  c6 {[%clk 0:02:58]} 3. Bb2 {[%clk 0:03:01]}  Bf5 {[%clk 0:02:58]} 4. g3 {[%clk 0:03:02]}  e6 {[%clk 0:02:58]} 5. Bg2 {[%clk 0:03:03]}  Nd7 {[%clk 0:02:59]} 6. O-O {[%clk 0:03:03]}  h6 {[%clk 0:02:59]} 7. d3 {[%clk 0:03:04]}  Ngf6 {[%clk 0:03:00]} 8. Nbd2 {[%clk 0:03:05]}  Bh7 {[%clk 0:03:00]} 9. e3 {[%clk 0:03:05]}  Bc5 {[%clk 0:02:59]} 10. Qe2 {[%clk 0:03:06]}  Qe7 {[%clk 0:02:59]} 11. Ne1 {[%clk 0:03:05]}  Ba3 {[%clk 0:02:58]} 12. Bxa3 {[%clk 0:03:02]}  Qxa3 {[%clk 0:02:59]} 13. f4 {[%clk 0:03:02]}  a5 {[%clk 0:02:54]} 14. Nef3 {[%clk 0:02:44]}  a4 {[%clk 0:02:53]} 15. Rab1 {[%clk 0:02:38]}  Qxa2 {[%clk 0:02:44]} 16. bxa4 {[%clk 0:02:31]}  Qxc2 {[%clk 0:02:43]} 17. Rxb7 {[%clk 0:02:31]}  Bxd3 {[%clk 0:02:34]} 18. Qd1 {[%clk 0:02:31]}  Qxa4 {[%clk 0:02:28]} 19. Qxa4 {[%clk 0:02:18]}  Rxa4 {[%clk 0:02:29]} 20. Ne5 {[%clk 0:02:18]}  Bxf1 {[%clk 0:02:27]} 21. Bxf1 {[%clk 0:02:08]}  Ra8 {[%clk 0:02:20]} 22. Nxc6 {[%clk 0:02:08]}  O-O {[%clk 0:02:12]} 23. Bb5 {[%clk 0:02:04]}  Nc5 {[%clk 0:02:11]} 24. Rc7 {[%clk 0:02:03]}  Nce4 {[%clk 0:02:00]} 25. Nf3 {[%clk 0:01:54]}  Ra1+ {[%clk 0:01:54]} 26. Kg2 {[%clk 0:01:49]}  Ra2+ {[%clk 0:01:54]} 27. Kg1 {[%clk 0:01:50]}  Ng4 {[%clk 0:01:43]} 28. f5 {[%clk 0:01:33]}  Nxe3 {[%clk 0:01:42]} 29. Nh4 {[%clk 0:01:30]}  Ra1+ {[%clk 0:01:40]} 0-1


[Site "https://www.chess.com"]

[Event "Titled Tuesday Blitz March 15 Late 2022"]
[White "Jaskolka, Tomasz"]
[Black "Sanchez, Robert"]
[WhiteFideId "1170791"]
[BlackFideId "2034360"]
[WhiteElo "2073"]
[BlackElo "2325"]
[Result "1-0"]
[Round "10"]
[TimeControl "180+1"]
[Date "2022.03.16"]
[WhiteClock "0:01:03"]
[BlackClock "0:00:32"]

1. d4 {[%clk 0:03:00]}  e6 {[%clk 0:02:54]} 2. Bf4 {[%clk 0:03:00]}  f5 {[%clk 0:02:54]} 3. e3 {[%clk 0:03:00]}  Nf6 {[%clk 0:02:54]} 4. c3 {[%clk 0:03:00]}  Be7 {[%clk 0:02:55]} 5. Nd2 {[%clk 0:03:01]}  O-O {[%clk 0:02:55]} 6. Ngf3 {[%clk 0:03:01]}  b6 {[%clk 0:02:55]} 7. h3 {[%clk 0:02:56]}  Bb7 {[%clk 0:02:54]} 8. Rg1 {[%clk 0:02:56]}  Nd5 {[%clk 0:02:42]} 9. Bh2 {[%clk 0:02:55]}  f4 {[%clk 0:02:37]} 10. e4 {[%clk 0:02:52]}  Nf6 {[%clk 0:02:24]} 11. Bd3 {[%clk 0:02:52]}  Ne8 {[%clk 0:02:14]} 12. g3 {[%clk 0:02:42]}  fxg3 {[%clk 0:02:14]} 13. Bxg3 {[%clk 0:02:35]}  c5 {[%clk 0:01:56]} 14. Qe2 {[%clk 0:02:31]}  Nc6 {[%clk 0:01:56]} 15. d5 {[%clk 0:02:25]}  Na5 {[%clk 0:01:51]} 16. O-O-O {[%clk 0:02:11]}  c4 {[%clk 0:01:44]} 17. Bc2 {[%clk 0:02:08]}  exd5 {[%clk 0:01:39]} 18. Be5 {[%clk 0:01:37]}  Bf6 {[%clk 0:01:32]} 19. exd5 {[%clk 0:01:33]}  b5 {[%clk 0:01:23]} 20. Ne4 {[%clk 0:01:30]}  Bxe5 {[%clk 0:01:07]} 21. Nxe5 {[%clk 0:01:30]}  Qe7 {[%clk 0:00:59]} 22. Qh5 {[%clk 0:01:13]}  d6 {[%clk 0:00:44]} 23. Qxh7+ {[%clk 0:01:05]}  Kxh7 {[%clk 0:00:44]} 24. Nf6+ {[%clk 0:01:05]}  Kh8 {[%clk 0:00:32]} 25. Ng6# {[%clk 0:01:03]} 1-0


[Site "https://www.chess.com"]

[Event "Titled Tuesday Blitz March 15 Late 2022"]
[White "Koutlas, Nikolaos"]
[Black "Chiu, Isaac"]
[WhiteFideId "25827138"]
[BlackFideId "30900654"]
[WhiteElo "1610"]
[BlackElo "2117"]
[Result "1-0"]
[Round "10"]
[TimeControl "180+1"]
[Date "2022.03.16"]
[WhiteClock "0:01:05"]
[BlackClock "0:01:01"]

1. c4 {[%clk 0:03:00]}  c5 {[%clk 0:02:57]} 2. Nc3 {[%clk 0:03:00]}  Nf6 {[%clk 0:02:55]} 3. g3 {[%clk 0:03:00]}  d5 {[%clk 0:02:52]} 4. cxd5 {[%clk 0:03:00]}  Nxd5 {[%clk 0:02:53]} 5. Bg2 {[%clk 0:03:00]}  Nxc3 {[%clk 0:02:53]} 6. bxc3 {[%clk 0:02:59]}  g6 {[%clk 0:02:46]} 7. Rb1 {[%clk 0:02:55]}  Bg7 {[%clk 0:02:45]} 8. Rxb7 {[%clk 0:02:49]}  Bxb7 {[%clk 0:02:35]} 9. Bxb7 {[%clk 0:02:49]}  Nd7 {[%clk 0:02:35]} 10. Bxa8 {[%clk 0:02:49]}  Qxa8 {[%clk 0:02:36]} 11. Nf3 {[%clk 0:02:49]}  O-O {[%clk 0:02:36]} 12. O-O {[%clk 0:02:48]}  Qd5 {[%clk 0:02:35]} 13. Qc2 {[%clk 0:02:44]}  c4 {[%clk 0:02:30]} 14. Ba3 {[%clk 0:02:41]}  Re8 {[%clk 0:02:19]} 15. Rb1 {[%clk 0:02:36]}  e5 {[%clk 0:02:16]} 16. e4 {[%clk 0:02:33]}  Qc6 {[%clk 0:02:14]} 17. d3 {[%clk 0:02:29]}  Nf6 {[%clk 0:02:07]} 18. Rb4 {[%clk 0:02:20]}  cxd3 {[%clk 0:02:05]} 19. Qxd3 {[%clk 0:02:21]}  h6 {[%clk 0:01:51]} 20. Qc4 {[%clk 0:02:15]}  Qd7 {[%clk 0:01:46]} 21. Rb5 {[%clk 0:02:07]}  Rc8 {[%clk 0:01:40]} 22. Rc5 {[%clk 0:02:04]}  Rb8 {[%clk 0:01:35]} 23. Nxe5 {[%clk 0:02:01]}  Qh3 {[%clk 0:01:29]} 24. Qxf7+ {[%clk 0:01:46]}  Kh8 {[%clk 0:01:29]} 25. Bb4 {[%clk 0:01:36]}  Rd8 {[%clk 0:01:24]} 26. Qb3 {[%clk 0:01:18]}  Kh7 {[%clk 0:01:11]} 27. Rc7 {[%clk 0:01:09]}  Rd2 {[%clk 0:01:01]} 28. Rxg7+ {[%clk 0:01:07]}  Kxg7 {[%clk 0:01:00]} 29. Qf7+ {[%clk 0:01:06]}  Kh8 {[%clk 0:01:01]} 30. Nxg6# {[%clk 0:01:05]} 1-0


[Site "https://www.chess.com"]

[Event "Titled Tuesday Blitz March 15 Late 2022"]
[White "Lazavik, Denis"]
[Black "Urazayev, Arystanbek"]
[WhiteFideId "13515110"]
[BlackFideId "13709810"]
[WhiteElo "2437"]
[BlackElo "2393"]
[Result "1-0"]
[Round "10"]
[TimeControl "180+1"]
[Date "2022.03.15"]
[WhiteClock "0:01:23"]
[BlackClock "0:00:42"]

1. d4 {[%clk 0:03:00]}  d5 {[%clk 0:03:00]} 2. c4 {[%clk 0:03:01]}  e6 {[%clk 0:03:00]} 3. Nf3 {[%clk 0:03:01]}  Nf6 {[%clk 0:02:59]} 4. g3 {[%clk 0:03:01]}  Bb4+ {[%clk 0:02:59]} 5. Bd2 {[%clk 0:03:01]}  Be7 {[%clk 0:02:59]} 6. Bg2 {[%clk 0:03:01]}  O-O {[%clk 0:02:59]} 7. O-O {[%clk 0:03:01]}  Nbd7 {[%clk 0:02:59]} 8. Qc2 {[%clk 0:03:01]}  Ne4 {[%clk 0:03:00]} 9. Bf4 {[%clk 0:03:00]}  c6 {[%clk 0:02:58]} 10. Nc3 {[%clk 0:02:58]}  g5 {[%clk 0:02:58]} 11. Be3 {[%clk 0:02:53]}  Nd6 {[%clk 0:02:58]} 12. b3 {[%clk 0:02:54]}  Nf5 {[%clk 0:02:57]} 13. Rad1 {[%clk 0:02:51]}  g4 {[%clk 0:02:52]} 14. Ne1 {[%clk 0:02:46]}  Nxe3 {[%clk 0:02:48]} 15. fxe3 {[%clk 0:02:47]}  Bg5 {[%clk 0:02:48]} 16. e4 {[%clk 0:02:46]}  dxc4 {[%clk 0:02:42]} 17. bxc4 {[%clk 0:02:44]}  c5 {[%clk 0:02:43]} 18. d5 {[%clk 0:02:37]}  Be3+ {[%clk 0:02:23]} 19. Kh1 {[%clk 0:02:36]}  Qg5 {[%clk 0:02:22]} 20. Nd3 {[%clk 0:02:30]}  Ne5 {[%clk 0:02:18]} 21. Nf4 {[%clk 0:02:24]}  Ng6 {[%clk 0:01:54]} 22. Nd3 {[%clk 0:02:12]}  Bd7 {[%clk 0:01:45]} 23. e5 {[%clk 0:02:11]}  f5 {[%clk 0:01:13]} 24. exf6 {[%clk 0:02:03]}  Rxf6 {[%clk 0:01:13]} 25. Ne4 {[%clk 0:02:02]}  Rxf1+ {[%clk 0:01:13]} 26. Rxf1 {[%clk 0:02:03]}  Qe7 {[%clk 0:01:13]} 27. d6 {[%clk 0:01:52]}  Qd8 {[%clk 0:01:14]} 28. Ndxc5 {[%clk 0:01:47]}  Bd4 {[%clk 0:01:06]} 29. Qd2 {[%clk 0:01:32]}  Bg7 {[%clk 0:01:02]} 30. Nxd7 {[%clk 0:01:28]}  Qxd7 {[%clk 0:01:02]} 31. Nc5 {[%clk 0:01:29]}  Qe8 {[%clk 0:00:57]} 32. d7 {[%clk 0:01:25]}  Qe7 {[%clk 0:00:56]} 33. Nxb7 {[%clk 0:01:24]}  Rd8 {[%clk 0:00:43]} 34. Nxd8 {[%clk 0:01:24]}  Qxd8 {[%clk 0:00:44]} 35. c5 {[%clk 0:01:23]}  Ne5 {[%clk 0:00:42]} 36. c6 {[%clk 0:01:23]} 1-0


[Site "https://www.chess.com"]

[Event "Titled Tuesday Blitz March 15 Late 2022"]
[White "Le Goff, Ronan"]
[Black "Swicarz, Maciej"]
[WhiteFideId "612073"]
[BlackFideId "1113585"]
[WhiteElo "2276"]
[BlackElo "2057"]
[Result "1-0"]
[Round "10"]
[TimeControl "180+1"]
[Date "2022.03.16"]
[WhiteClock "0:00:13"]
[BlackClock "0:00:07"]

1. d4 {[%clk 0:02:57]}  Nf6 {[%clk 0:02:58]} 2. c4 {[%clk 0:02:56]}  e6 {[%clk 0:02:59]} 3. Nc3 {[%clk 0:02:56]}  Bb4 {[%clk 0:02:58]} 4. e3 {[%clk 0:02:56]}  O-O {[%clk 0:02:57]} 5. Ne2 {[%clk 0:02:56]}  b6 {[%clk 0:02:54]} 6. a3 {[%clk 0:02:55]}  Be7 {[%clk 0:02:54]} 7. g4 {[%clk 0:02:54]}  Nxg4 {[%clk 0:02:51]} 8. Bg2 {[%clk 0:02:51]}  c6 {[%clk 0:02:47]} 9. Nf4 {[%clk 0:02:49]}  d5 {[%clk 0:02:44]} 10. Qxg4 {[%clk 0:02:47]}  e5 {[%clk 0:02:42]} 11. Qh5 {[%clk 0:02:42]}  exf4 {[%clk 0:02:39]} 12. cxd5 {[%clk 0:02:41]}  Bb7 {[%clk 0:02:33]} 13. Rg1 {[%clk 0:02:33]}  g6 {[%clk 0:02:30]} 14. Qh3 {[%clk 0:02:31]}  cxd5 {[%clk 0:02:26]} 15. exf4 {[%clk 0:02:26]}  Bf6 {[%clk 0:02:23]} 16. Be3 {[%clk 0:02:25]}  Nc6 {[%clk 0:02:15]} 17. O-O-O {[%clk 0:02:24]}  Na5 {[%clk 0:02:14]} 18. f5 {[%clk 0:02:21]}  Bc8 {[%clk 0:02:00]} 19. Bxd5 {[%clk 0:02:11]}  Kh8 {[%clk 0:01:49]} 20. Be4 {[%clk 0:01:50]}  Re8 {[%clk 0:01:47]} 21. Bc2 {[%clk 0:01:45]}  Nc4 {[%clk 0:01:33]} 22. Qf3 {[%clk 0:01:35]}  Ba6 {[%clk 0:00:57]} 23. fxg6 {[%clk 0:01:29]}  fxg6 {[%clk 0:00:57]} 24. Nd5 {[%clk 0:01:23]}  Bg7 {[%clk 0:00:54]} 25. Bg5 {[%clk 0:01:22]}  Qd7 {[%clk 0:00:48]} 26. Bf6 {[%clk 0:01:17]}  Bb7 {[%clk 0:00:42]} 27. Bxg7+ {[%clk 0:01:11]}  Qxg7 {[%clk 0:00:43]} 28. Rg5 {[%clk 0:00:53]}  Rad8 {[%clk 0:00:35]} 29. Be4 {[%clk 0:00:38]}  Nd6 {[%clk 0:00:28]} 30. Re5 {[%clk 0:00:28]}  Rf8 {[%clk 0:00:17]} 31. Qe3 {[%clk 0:00:24]}  Nxe4 {[%clk 0:00:15]} 32. Qxe4 {[%clk 0:00:24]}  Qd7 {[%clk 0:00:12]} 33. Qh4 {[%clk 0:00:15]}  Bxd5 {[%clk 0:00:11]} 34. Re7 {[%clk 0:00:15]}  Qc6+ {[%clk 0:00:09]} 35. Kb1 {[%clk 0:00:16]}  h5 {[%clk 0:00:07]} 36. Qg5 {[%clk 0:00:13]} 1-0


[Site "https://www.chess.com"]